[Event "Seniors-LEM-65 Sachsen-Anhalt 2024"]
[Site "Magdeburg"]
[Date "2024.07.01"]
[Round "1.20"]
[White "Neubauer, Uwe"]
[Black "Haase, Reinhard"]
[Result "1/2-1/2"]
[ECO "A35"]
[WhiteElo "1827"]
[BlackElo "2044"]
[Annotator "TA"]
[PlyCount "63"]
[EventDate "2024.06.25"]
[EventType "swiss"]
[EventCountry "GER"]
[SourceTitle "playchess.com"]
[Source "ChessBase"]
[SourceQuality "1"]
[TimeControl "40/5400+30:1800+30"]

{[%evp 9,63,18,26,18,37,30,25,31,27,33,35,43,40,27,28,-15,56,39,52,14,16,-6,26,23,34,31,35,39,79,-33,0,0,5,0,0,10,15,0,11,5,0,14,10,0,0,0,0,-20,0,-20,0,0,0,0,0,0]} 1. Nf3 {[%emt 0:00:05]} c5 {[%emt 0:00:19]} 2. c4 {[%emt 0:00:25]} Nc6 {[%emt 0:02:17]} 3. g3 {[%emt 0:00:37]} e5 {[%emt 0:00:28]} 4. Nc3 {[%emt 0:00:52]} f5 {[%emt 0:01:41]} 5. d3 {[%emt 0:01:35]} d6 {[%emt 0:02:22]} 6. Bg2 {[%emt 0:00:42]} Be7 {[%emt 0:00:35]} 7. e3 {[%emt 0:03:01]} Nf6 {[%emt 0:00:34]} 8. a3 {[%emt 0:01:45] White has an edge.} O-O {[%emt 0:00:42]} 9. O-O {[%emt 0:02:39]} Kh8 {[%emt 0:01:26]} 10. Rb1 {[%emt 0:02:16]} d5 {[%emt 0:06:24]} 11. cxd5 {[%emt 0:02:07]} Nxd5 {[%emt 0:00:04]} 12. Bd2 {[%emt 0:03:11][%cal Of3e5] aiming for Nxe5!} Nxc3 {[%emt 0:02:36]} ({Better is} 12... Nf6 $11) 13. Bxc3 $14 {[%emt 0:03:17]} Bf6 {[%emt 0:00:04]} 14. Qc2 {[%emt 0:03:51]} a5 {[%emt 0:09:25]} 15. Ne1 {[%emt 0:04:15]} Be6 {[%emt 0:02:50]} 16. f4 {[%emt 0:04:56]} exf4 {[%emt 0:10:40]} 17. Bxf6 {[%emt 0:01:49]} Rxf6 {[%emt 0:01:01]} (17... Qxf6 18. Rxf4 Qe5 19. Bxc6 bxc6 (19... Qxe3+ 20. Kf1 $14) 20. Nf3 $11) 18. Rxf4 {[%emt 0:01:25]} Rc8 {[%emt 0:01:37]} 19. Nf3 {[%emt 0:08:44]} (19. Qxc5 $16 Rf7 20. Rd1) 19... b6 {[%emt 0:05:08]} 20. Rd1 {[%emt 0:05:24] The position is equal.} Qg8 {[%emt 0:10:24] [#] ...Bb3 would now be deadly.} 21. Qc3 {[%emt 0:04:47]} Ne7 {[%emt 0:04:03][%cal Bc6e7,Be7g6,Bg6e5,Be5g4][%mdl 32] Hoping for ...Nd5.} 22. Ng5 {[%emt 0:01:59]} Ng6 {[%emt 0:10:15]} 23. Rf2 {[%emt 0:05:56]} Rcf8 {[%emt 0:06:12]} 24. Nxe6 {[%emt 0:02:49]} Qxe6 {[%emt 0:00:03]} 25. d4 {[%emt 0:02:14]} cxd4 {[%emt 0:00:27]} 26. Qxd4 {[%emt 0:01:00]} ({But not} 26. exd4 $6 Qd7 $16) 26... Ne5 {[%emt 0:01:10]} 27. Bd5 {[%emt 0:01:23]} Qe7 {[%emt 0:00:38]} 28. Bb3 {[%emt 0:08:44]} Ng4 {[%emt 0:01:19]} 29. Rf3 {[%emt 0:03:48]} h5 {[%emt 0:03:37]} 30. h3 {[%emt 0:01:52]} Ne5 {[%emt 0:00:50]} 31. Rf2 {[%emt 0:02:00]} Rg6 {[%emt 0:00:41]} 32. Kh2 {[%emt 0:01:45] Weighted Error Value: White=0.13 (very precise) /Black=0.13 (very precise) .  Mistake:       	White=1     	Black=1      Inaccurate:     	White=2     	Black=3      OK:         	White=13    	Black=8} 1/2-1/2

[Event "Seniors-LEM-65 Sachsen-Anhalt 2024"]
[Site "Magdeburg"]
[Date "2024.07.01"]
[Round "1.21"]
[White "Bauer, Burkhard"]
[Black "Hauke, Hans"]
[Result "0-1"]
[ECO "D02"]
[WhiteElo "2043"]
[BlackElo "1824"]
[Annotator "TA"]
[PlyCount "79"]
[EventDate "2024.06.25"]
[EventType "swiss"]
[EventCountry "GER"]
[SourceTitle "playchess.com"]
[Source "ChessBase"]
[SourceQuality "1"]
[TimeControl "40/5400+30:1800+30"]

{[%evp 14,79,0,-4,47,17,41,22,189,180,240,229,208,171,250,227,237,164,163,163,162,94,95,124,96,84,96,83,92,76,92,75,91,85,86,79,95,69,88,42,60,22,25,11,11,11,11,11,19,10,11,11,24,31,31,31,527,527,527,527,527,527,527,527,527,527,527,527]} 1. d4 {[%emt 1:31:00]} d5 2. Nf3 Nf6 3. Bf4 {[%emt 0:01:00]} c5 {[%emt 1:32:00]} 4. e3 {[%emt 0:00:30]} Nc6 {[%emt 0:00:30]} 5. c3 e6 {[%emt 0:00:30]} 6. Nbd2 {[%emt 0:01:00][%cal Bb1d2,Bd2e4,Be4c5][%mdl 32]} Bd6 {[%emt 0:00:30]} 7. Bg3 O-O {[%emt 0:00:30]} 8. Bd3 {[%emt 0:01:00]} a6 {[%emt 0:00:30]} (8... b6 $11) 9. Qe2 {[%emt 0:00:30]} b5 {[%emt 0:00:30]} 10. e4 {[%emt 0:00:30]} dxe4 $2 {[%emt 0:00:30]} (10... c4 $11 {and Black stays safe.} 11. Bc2 Be7) 11. Nxe4 $18 {[%emt 0:00:30]} Bxg3 {[%emt 0:00:30]} (11... c4 $142) 12. hxg3 {[%emt 0:00:30] Nxf6+ would now be deadly.} g6 {[%emt 0:00:30]} 13. Nxc5 e5 {[%emt 0:00:30]} (13... Ra7 $142 14. O-O b4) 14. Nxe5 {[%emt 0:01:00]} Re8 {[%emt 0:00:30][%cal Oc6d4,Bf8e8,Be8e5,Be5b5][%mdl 32]} 15. O-O {[%emt 0:00:30]} Nxe5 {[%emt 0:00:30]} 16. dxe5 {[%emt 0:00:30] And now Qf3 would win.} Qd5 {[%emt 0:00:30]} 17. Qf3 {[%emt 0:00:30]} ({Better is} 17. Ne4 $1 $18 {[%cal Re4f6]} Nxe4 18. Qxe4 Qxe4 19. Bxe4) 17... Qxf3 $16 {[%emt 0:00:30]} 18. gxf3 {[%emt 0:00:30]} Rxe5 {[%emt 0:00:30]} 19. Ne4 {[%emt 0:00:30]} Nxe4 {[%emt 0:00:30]} 20. Bxe4 {[%emt 0:00:30]} Ra7 {[%emt 0:00:30]} 21. a4 {[%emt 0:00:30]} Rc7 {[%emt 0:00:30]} 22. Rfd1 {[%emt 0:00:30]} bxa4 {[%emt 0:00:30]} 23. Rxa4 {[%emt 0:00:30]} Rb5 {[%emt 0:00:30]} 24. Rd2 {[%emt 0:00:30]} Rb6 {[%emt 0:00:30]} 25. Bd5 {[%emt 0:00:30]} Kg7 {[%emt 0:00:30]} 26. c4 {[%emt 0:00:30]} (26. Ra5 $16) 26... Bb7 $14 {[%emt 0:00:30]} 27. Bxb7 {[%emt 0:00:30]} Rcxb7 {[%emt 0:00:30]} 28. c5 Rxb2 {[%emt 0:00:30]} 29. Rxb2 {[%emt 0:01:00]} Rxb2 {[%emt 0:00:30]} 30. Rxa6 $11 {[%mdl 4096] Endgame. KR-KR} Rc2 {[%emt 0:00:30]} 31. Rc6 {[%emt 0:01:00]} Kf8 {[%emt 0:00:30]} 32. Rc7 {[%emt 0:00:30]} Ke8 {[%emt 0:00:30]} 33. Kg2 {[%emt 0:00:30]} Rd2 {[%emt 0:00:30]} 34. f4 {[%emt 0:00:30]} Rd7 $2 {[%mdl 8192]} (34... Rd3 $1 $14) 35. Rxd7 $18 {[%emt 0:00:30] White is clearly winning.} Kxd7 {[%emt 0:01:00]} 36. Kf3 {White threatens Ke4 and mate.} Kc6 {[%emt 0:00:30][%cal Of7f5] [#]} 37. Ke4 {[%emt 0:01:00] Threatening mate with Kd4.} Kxc5 {[%emt 0:00:30] [#]} 38. Ke5 {Intending Kf6 and mate.} Kc4 {[%emt 0:00:30]} 39. Kf6 {[%emt 0:01:00]} Kd3 40. Kxf7 {[%mdl 32768] Weighted Error Value: White=0.20 (precise) /Black=0.44.  Loses game:     	---       	Black=2      Mistake:       	White=2     	Black=2      Inaccurate:     	White=3     	---        OK:         	White=6     	Black=12     Best:        	White=4     	Black=3     . Sensor Board Error (Ke4/e5)?} 0-1

[Event "Seniors-LEM-65 Sachsen-Anhalt 2024"]
[Site "Magdeburg"]
[Date "2024.07.01"]
[Round "1.22"]
[White "Kramell, Ralph Friedrich Kurt"]
[Black "Kopp, Peter"]
[Result "1/2-1/2"]
[ECO "C27"]
[WhiteElo "1824"]
[BlackElo "2014"]
[Annotator "TA"]
[PlyCount "65"]
[EventDate "2024.06.25"]
[EventType "swiss"]
[EventCountry "GER"]
[SourceTitle "playchess.com"]
[Source "ChessBase"]
[SourceQuality "1"]
[TimeControl "40/5400+30:1800+30"]

{[%evp 9,65,-1,6,2,12,14,18,16,29,28,32,30,37,31,36,5,12,0,-14,-7,-26,-10,19,0,12,-47,-6,-16,-9,-29,-18,-6,-12,-23,-5,-73,-76,-89,-6,-14,0,0,0,0,0,0,-10,-25,-20,-18,0,0,0,0,0,0,0,0]} 1. Nc3 {[%emt 0:00:11]} d6 {[%emt 0:00:13]} 2. e4 {[%emt 0:00:24]} e5 {[%emt 0:00:45]} 3. Bc4 {[%emt 0:00:28]} Nf6 {[%emt 0:01:16]} 4. Nge2 {[%emt 0:01:59]} Be7 {[%emt 0:00:22]} 5. d3 {[%emt 0:01:02]} O-O {[%emt 0:00:46]} 6. O-O {[%emt 0:00:18]} c6 {[%emt 0:00:17]} 7. a4 {[%emt 0:05:20]} a5 {[%emt 0:01:29]} 8. Kh1 {[%emt 0:01:24]} Nbd7 {[%emt 0:00:47]} 9. Ng3 {[%emt 0:04:57]} Nc5 {[%emt 0:02:44]} 10. f4 {[%emt 0:06:05]} Be6 {[%emt 0:01:53]} 11. Bxe6 {[%emt 0:00:32]} Nxe6 {[%emt 0:01:17]} 12. Nf5 {[%emt 0:04:53]} exf4 {[%emt 0:02:06]} 13. Nxe7+ {[%emt 0:06:00]} Qxe7 {[%emt 0:00:06]} 14. Bxf4 {[%emt 0:00:07]} Nxf4 {[%emt 0:00:17]} 15. Rxf4 {[%emt 0:00:10]} g6 {[%emt 0:03:53]} 16. b3 {[%emt 0:07:27]} Qe5 {[%emt 0:02:15]} 17. Ne2 {[%emt 0:00:44]} (17. Qd2 $11) 17... Nh5 {[%emt 0:03:51][%cal Bf6h5,Bh5g7,Bg7e6][%mdl 32]} 18. Rf2 {[%emt 0:05:04]} Rae8 {[%emt 0:01:13]} 19. Qf1 {[%emt 0:01:52]} Re7 {[%emt 0:07:09]} 20. g4 {[%emt 0:04:46]} Ng7 {[%emt 0:00:14]} 21. Qg1 {[%emt 0:01:42]} d5 {[%emt 0:03:21]} 22. exd5 {[%emt 0:04:02]} (22. Ng3 $1 $11) 22... Qxd5+ $17 {[%emt 0:00:12]} 23. Qg2 {[%emt 0:00:14]} Qxg2+ {[%emt 0:00:32]} ({Black should try} 23... Qc5 $17 24. Nf4 Rfe8) 24. Kxg2 $11 {[%emt 0:00:28]} Rfe8 {[%emt 0:01:08]} 25. Ng3 {[%emt 0:04:04]} Ne6 {[%emt 0:05:10]} 26. Ne4 {[%emt 0:01:14] [#] Nf6+ would now be deadly.} Kg7 {[%emt 0:00:15]} 27. Raf1 {[%emt 0:01:15]} Rd8 {[%emt 0:01:18]} 28. Kg3 {[%emt 0:09:39]} h6 {[%emt 0:00:55]} 29. h4 {[%emt 0:00:37] The position is equal.} Rd5 {[%emt 0:06:22]} 30. Nf6 {[%emt 0:03:51]} Re5 {[%emt 0:02:49]} 31. Ne4 {[%emt 0:00:32]} Rd5 {[%emt 0:03:42]} 32. Nf6 {[%emt 0:00:16]} Re5 {[%emt 0:01:04]} 33. Ne4 {[%emt 0:00:13] Weighted Error Value: White=0.13 (very precise) /Black=0.14 (very precise) .  Mistake:       	White=2     	Black=1      Inaccurate:     	White=2     	Black=2      OK:         	White=12    	Black=9      Best:        	White=1     	---} 1/2-1/2

[Event "Seniors-LEM-65 Sachsen-Anhalt 2024"]
[Site "Magdeburg"]
[Date "2024.07.01"]
[Round "1.23"]
[White "Klettke, Wolfgang"]
[Black "Jacob, Barbara"]
[Result "1/2-1/2"]
[ECO "C01"]
[WhiteElo "2008"]
[BlackElo "1824"]
[Annotator "TA"]
[PlyCount "72"]
[EventDate "2024.06.25"]
[EventType "swiss"]
[EventCountry "GER"]
[SourceTitle "playchess.com"]
[Source "ChessBase"]
[SourceQuality "1"]
[TimeControl "40/5400+30:1800+30"]

{[%evp 9,72,63,73,68,75,61,87,14,27,6,56,39,59,20,123,135,142,138,156,113,145,46,104,0,118,89,151,81,214,110,244,154,242,176,193,106,112,0,188,189,156,153,362,150,138,110,97,62,125,45,81,0,16,32,24,23,41,34,71,65,62,0,0,0,75]} 1. e4 {[%emt 0:00:03]} d6 {[%emt 0:00:10]} 2. d4 {[%emt 0:00:05]} e6 {[%emt 0:00:15]} 3. f4 {[%emt 0:01:43]} Ne7 {[%emt 0:00:47]} 4. Nf3 {[%emt 0:00:13]} h6 {[%emt 0:00:11]} 5. Bd3 {[%emt 0:00:11]} g6 {[%emt 0:01:05]} 6. O-O {[%emt 0:00:19]} Bg7 {[%emt 0:00:38]} 7. Be3 {[%emt 0:00:53]} Nd7 {[%emt 0:01:16]} 8. g4 {[%emt 0:06:09]} (8. c4 $16) 8... b6 {[%emt 0:06:52]} 9. c4 {[%emt 0:02:59]} Bb7 {[%emt 0:01:25]} (9... e5 $11) 10. Nc3 $14 {[%emt 0:00:13]} a6 {[%emt 0:00:36]} 11. f5 {[%emt 0:02:13]} e5 {[%emt 0:14:30]} (11... exf5 $11 12. exf5 (12. gxf5 gxf5 13. Nh4 c5 $11) 12... gxf5) 12. d5 $16 {[%emt 0:03:55]} Nf6 {[%emt 0:00:58]} 13. h3 {[%emt 0:02:38]} Qd7 {[%emt 0:03:37]} 14. b4 {[%emt 0:00:29]} gxf5 {[%emt 0:14:45]} 15. exf5 {[%emt 0:02:59]} ({Only move:} 15. gxf5 $16 {Hoping for Kh2.} a5 16. bxa5) 15... Rg8 {[%emt 0:04:52] [#]} (15... b5 $14) 16. Ne4 {[%emt 0:05:53]} (16. Nd2 $1 $16) 16... Nxe4 {[%emt 0:03:04]} (16... b5 $11) 17. Bxe4 {[%emt 0:00:03]} f6 {[%emt 0:00:38]} (17... Bf6 $142) 18. a4 {[%emt 0:01:22] Black is weak on the light squares} (18. Nh4 $142) 18... Bf8 {[%emt 0:01:20]} (18... h5 $16) 19. Kf2 {[%emt 0:05:06]} (19. Kh2 $18) 19... Nc8 {[%emt 0:06:20]} (19... h5 $16 20. Nh4 (20. gxh5 Nxf5 21. Qd3 Nxe3 $11) 20... hxg4) 20. Qd2 {[%emt 0:05:03][%cal Oa4a5]} Qg7 {[%emt 0:01:31]} (20... a5 $16 {was necessary.} 21. Rg1 (21. Bxh6 axb4 22. Bxf8 Kxf8 $18) 21... Qf7) 21. Nh4 {[%emt 0:00:37]} Ne7 {[%emt 0:00:16]} 22. c5 {[%emt 0:03:05]} ({White should play} 22. Kg1 $18) 22... h5 {[%emt 0:05:48]} 23. Rg1 {[%emt 0:01:48] White is much more active.} (23. c6 $16 Bc8 24. Rg1 (24. gxh5 $2 Qg3+ 25. Ke2 Qxh4 $19)) 23... Qh7 $2 {[%emt 0:00:46]} (23... hxg4 $1 $11 24. Rxg4 (24. cxb6 g3+ 25. Ke1 cxb6 $11) 24... Qh7) 24. g5 $18 {[%emt 0:05:18]} ({Weaker is} 24. cxb6 hxg4 25. Ng6 gxh3 $11) 24... fxg5 {[%emt 0:01:37]} 25. Bxg5 {[%emt 0:00:37]} Qf7 $2 {[%emt 0:01:41]} (25... Rxg5 $16 26. Qxg5 (26. Rxg5 dxc5 27. Ng6 O-O-O $18) 26... dxc5 27. bxc5 Bxd5) 26. cxd6 {[%emt 0:03:24]} (26. c6 $18 {and the rest is easy.} Bc8 27. Qd3) 26... cxd6 $16 {[%emt 0:00:28][%cal Rb7d5]} 27. Bxe7 {[%emt 0:02:03]} Bxe7 {[%emt 0:01:23]} 28. Ng6 {[%emt 0:01:06]} Kd7 {[%emt 0:01:34]} (28... Bf6 $14) 29. Kg2 {[%emt 0:02:19]} (29. Nxe7 $16 Qxe7 30. Ke2) 29... Bf6 {[%emt 0:01:35]} 30. Rgd1 {[%emt 0:05:12]} (30. Rac1 $16) 30... Rac8 {[%emt 0:02:42]} 31. Qe3 {[%emt 0:00:15] Really sharp!} Rc4 {[%emt 0:01:36]} 32. Qxb6 {[%emt 0:22:59]} Ke8 {[%emt 0:02:21]} 33. Qe3 {[%emt 0:09:20]} Kd7 {[%emt 0:03:27][%cal Og8c8]} 34. b5 {[%emt 0:00:32][%cal Oe3b6] [#] Black must now prevent Qb6!} a5 $1 {[%emt 0:01:41]} 35. Qb6 {[%emt 0:01:49]} (35. Rac1 $14 Rgc8 36. Kg1) 35... Ke8 $11 {[%emt 0:02:05]} 36. Qe3 {[%emt 0:01:25]} Bd8 {[%emt 0:00:41] Blacks defense is rewarded with a draw.   Weighted Error Value: White=0.54/Black=0.56.  Loses game:     	---       	Black=2      Missed win:     	White=1     	---        Mistake:       	White=10    	Black=10     Inaccurate:     	White=3     	Black=3      OK:         	White=6     	Black=1      Best:        	White=2     	Black=3      Strong:       	---       	Black=1} (36... Kd7 $1 $11 {remains equal.}) 1/2-1/2

[Event "Seniors-LEM-65 Sachsen-Anhalt 2024"]
[Site "Magdeburg"]
[Date "2024.07.01"]
[Round "1.24"]
[White "Gismann, Juergen"]
[Black "Lapp, Karl"]
[Result "0-1"]
[ECO "C52"]
[WhiteElo "1813"]
[BlackElo "2001"]
[Annotator "RC"]
[PlyCount "74"]
[EventDate "2024.06.25"]
[EventType "swiss"]
[EventCountry "GER"]
[SourceTitle "playchess.com"]
[Source "ChessBase"]
[SourceQuality "1"]
[TimeControl "40/5400+30:1800+30"]

1. e4 {[%emt 0:00:51]} e5 {[%emt 0:00:12]} 2. Nf3 {[%emt 0:00:26]} Nc6 {[%emt 0:00:15]} 3. Bc4 {[%emt 0:00:36]} Bc5 {[%emt 0:00:19]} 4. b4 {[%emt 0:01:35]} Bxb4 {[%emt 0:00:12]} 5. c3 {[%emt 0:00:09]} Ba5 {[%emt 0:00:07]} 6. Qb3 {[%emt 0:02:39]} Qf6 {[%emt 0:02:29]} 7. O-O {[%emt 0:02:39]} Bb6 {[%emt 0:02:00]} 8. Qc2 {[%emt 0:02:52]} d6 {[%emt 0:00:22]} 9. Bb2 {[%emt 0:00:36]} Bg4 {[%emt 0:00:48]} 10. Be2 {[%emt 0:02:01]} Nge7 {[%emt 0:00:42]} 11. d3 {[%emt 0:02:11]} O-O {[%emt 0:01:16]} 12. Nbd2 {[%emt 0:00:46]} a6 {[%emt 0:00:45]} 13. Nb3 {[%emt 0:04:31]} Ng6 {[%emt 0:01:21]} 14. Ne1 {[%emt 0:02:02]} Bd7 {[%emt 0:01:21]} 15. Nf3 {[%emt 0:00:31]} Nf4 {[%emt 0:00:43]} 16. Ne1 {[%emt 0:03:09]} Qg6 {[%emt 0:01:49]} 17. Bf3 {[%emt 0:01:24]} f5 {[%emt 0:01:35]} 18. Bc1 {[%emt 0:08:16]} fxe4 {[%emt 0:01:33]} 19. Bxe4 {[%emt 0:00:43]} Nh3+ {[%emt 0:04:41]} 20. Kh1 {[%emt 0:00:55]} Nxf2+ {[%emt 0:00:37]} 21. Rxf2 {[%emt 0:01:09]} Rxf2 {[%emt 0:00:06]} 22. Qxf2 {[%emt 0:05:04]} Bxf2 {[%emt 0:01:08]} 23. Bxg6 {[%emt 0:00:35]} Bxe1 {[%emt 0:07:40]} 24. Be4 {[%emt 0:00:40]} Rf8 {[%emt 0:00:21]} 25. Bf3 {[%emt 0:05:13]} Bxc3 {[%emt 0:15:20]} 26. Rb1 {[%emt 0:00:57]} e4 {[%emt 0:01:00]} 27. dxe4 {[%emt 0:02:20]} Ne5 {[%emt 0:00:27]} 28. Bb2 {[%emt 0:08:00]} Bxb2 {[%emt 0:00:38]} 29. Rxb2 {[%emt 0:00:10]} Nxf3 {[%emt 0:02:14]} 30. gxf3 {[%emt 0:03:26]} Rxf3 {[%emt 0:02:05]} 31. Nd4 {[%emt 0:03:30]} Rd3 {[%emt 0:00:48]} 32. Nf5 {[%emt 0:01:24]} Bxf5 {[%emt 0:00:11]} 33. exf5 {[%emt 0:00:21]} b5 {[%emt 0:00:09]} 34. Rc2 {[%emt 0:35:49]} c5 {[%emt 0:00:12]} 35. Re2 {[%emt 0:00:00]} Kf7 {[%emt 0:00:17]} 36. Rf2 {[%emt 0:00:00]} Kf6 {[%emt 0:00:15]} 37. Kg2 {[%emt 0:00:00]} Rd5 {[%emt 0:00:11]} 0-1

[Event "Seniors-LEM-65 Sachsen-Anhalt 2024"]
[Site "Magdeburg"]
[Date "2024.07.01"]
[Round "1.26"]
[White "Moews, Harald"]
[Black "Waltenberger, Udo"]
[Result "0-1"]
[ECO "B20"]
[WhiteElo "1812"]
[BlackElo "1993"]
[Annotator "RC"]
[PlyCount "130"]
[EventDate "2024.06.25"]
[EventType "swiss"]
[EventCountry "GER"]
[SourceTitle "playchess.com"]
[Source "ChessBase"]
[SourceQuality "1"]
[TimeControl "40/5400+30:1800+30"]

1. e4 {[%emt 0:00:05]} c5 {[%emt 0:00:06]} 2. Bc4 {[%emt 0:00:16]} Nc6 {[%emt 0:00:19]} 3. d3 {[%emt 0:01:46]} g6 {[%emt 0:01:12]} 4. c3 {[%emt 0:00:26]} Bg7 {[%emt 0:00:37]} 5. f4 {[%emt 0:00:22]} d6 {[%emt 0:03:00]} 6. Nf3 {[%emt 0:00:17]} e6 {[%emt 0:00:15]} 7. Bb3 {[%emt 0:00:29]} Nge7 {[%emt 0:00:20]} 8. Be3 {[%emt 0:00:44]} O-O {[%emt 0:00:29]} 9. O-O {[%emt 0:00:04]} b5 {[%emt 0:02:20]} 10. Bc2 {[%emt 0:00:11]} b4 {[%emt 0:04:13]} 11. a3 {[%emt 0:03:02]} bxc3 {[%emt 0:02:19]} 12. bxc3 {[%emt 0:00:04]} Qa5 {[%emt 0:03:18]} 13. Qe1 {[%emt 0:00:26]} Ba6 {[%emt 0:05:45]} 14. Bd2 {[%emt 0:00:32]} Qb6 {[%emt 0:03:04]} 15. Qc1 {[%emt 0:00:16]} Rab8 {[%emt 0:05:34]} 16. Ra2 {[%emt 0:01:22]} Na5 {[%emt 0:09:01]} 17. Be3 {[%emt 0:02:51]} Nec6 {[%emt 0:01:53]} 18. g4 {[%emt 0:00:44]} d5 {[%emt 0:04:25]} 19. e5 {[%emt 0:02:17]} Ne7 {[%emt 0:03:54]} 20. g5 {[%emt 0:01:32]} Nf5 {[%emt 0:01:04]} 21. Bf2 {[%emt 0:00:16]} Rfc8 {[%emt 0:04:42]} 22. Qd1 {[%emt 0:01:31]} Qc6 {[%emt 0:02:06]} 23. Kg2 {[%emt 0:00:26]} Rc7 {[%emt 0:06:46]} 24. h4 {[%emt 0:01:05]} Rcb7 {[%emt 0:00:28]} 25. Nbd2 {[%emt 0:01:20]} c4 {[%emt 0:02:24]} 26. d4 {[%emt 0:00:17]} Bf8 {[%emt 0:03:36]} 27. Rh1 {[%emt 0:01:19]} Be7 {[%emt 0:04:29]} 28. h5 {[%emt 0:00:39]} Rb2 {[%emt 0:02:19]} 29. Rxb2 {[%emt 0:00:21]} Rxb2 {[%emt 0:00:01]} 30. a4 {[%emt 0:00:49]} Qb6 {[%emt 0:01:48]} 31. hxg6 {[%emt 0:00:29]} hxg6 {[%emt 0:02:39]} 32. Ne1 {[%emt 0:00:22]} Nb3 {[%emt 0:09:02]} 33. Nb1 {[%emt 0:00:47]} Ra2 {[%emt 0:02:44]} 34. Bxf5 {[%emt 0:00:42]} exf5 {[%emt 0:00:13]} 35. Qf3 {[%emt 0:00:51]} Bf8 {[%emt 0:00:17]} 36. Qh3 {[%emt 0:00:06]} Bg7 {[%emt 0:00:21]} 37. Nf3 {[%emt 0:02:08]} Na5 {[%emt 0:04:13]} 38. Nbd2 {[%emt 0:00:53]} Nb7 {[%emt 0:00:36]} 39. Qh7+ {[%emt 0:00:39]} Kf8 {[%emt 0:00:02]} 40. Rb1 {[%emt 0:00:23]} Rb2 {[%emt 0:00:26]} 41. Qh1 {[%emt 0:31:12]} Nd8 {[%emt 0:30:50]} 42. Kg3 {[%emt 0:00:13]} Bb7 {[%emt 0:02:08]} 43. Qc1 {[%emt 0:00:05]} Rxb1 {[%emt 0:00:12]} 44. Nxb1 {[%emt 0:00:31]} Qb3 {[%emt 0:02:06]} 45. Qa3+ {[%emt 0:01:51]} Qxa3 {[%emt 0:00:02]} 46. Nxa3 {[%emt 0:00:02]} Bc6 {[%emt 0:00:29]} 47. Nb5 {[%emt 0:01:16]} Bxb5 {[%emt 0:01:33]} 48. axb5 {[%emt 0:00:02]} Ne6 {[%emt 0:00:10]} 49. Nd2 {[%emt 0:03:56]} Nc7 {[%emt 0:00:11]} 50. Nxc4 {[%emt 0:00:48]} dxc4 {[%emt 0:00:14]} 51. d5 {[%emt 0:00:56]} Nxb5 {[%emt 0:00:38]} 52. Bc5+ {[%emt 0:00:35]} Ke8 {[%emt 0:00:02]} 53. Bb4 {[%emt 0:00:35]} Bf8 {[%emt 0:00:36]} 54. d6 {[%emt 0:00:02]} Kd7 {[%emt 0:00:18]} 55. Kf3 {[%emt 1:12:47]} Nxd6 {[%emt 0:03:32]} 56. Ke3 {[%emt 0:00:00]} Be7 {[%emt 0:01:33]} 57. Kd4 {[%emt 0:00:00]} Nb5+ {[%emt 0:01:15]} 58. Kxc4 {[%emt 0:00:00]} Bxb4 {[%emt 0:00:08]} 59. cxb4 {[%emt 0:00:00]} Kc6 {[%emt 0:00:12]} 60. Kb3 {[%emt 0:00:00]} Nd4+ {[%emt 0:00:43]} 61. Kc4 {[%emt 0:00:00]} Ne6 {[%emt 0:00:59]} 62. b5+ {[%emt 0:00:00]} Kc7 {[%emt 0:00:00]} 63. Kd5 {[%emt 0:00:00]} Nxf4+ {[%emt 0:00:00]} 64. Kc5 {[%emt 0:00:00]} Ne6+ {[%emt 0:00:00]} 65. Kd5 {[%emt 0:00:00]} Nxg5 {[%emt 0:00:00]} 0-1